bitfinex/quotes_ETHUSD_20250517
["timestamp","ask_amount","ask_price","bid_price","bid_amount"]
[1747481441629,12.99618201,2477.8,2477.6,2.53723753]
[1747481442322,4.03600113,2477.7,2477.6,2.53723753]
[1747481442525,4.03600113,2477.7,2477.6,0.38492879]
[1747481443003,4.03616402,2477.6,2477.5,7.71]
[1747481444839,4.03616402,2477.6,2477.5,8.09492879]
[1747481446334,4.03616402,2477.6,2477.5,8.32104214]
[1747481449142,8.96026718,2477.8,2477.5,8.32104214]
[1747481449307,8.96026718,2477.8,2477.7,0.765]
[1747481449945,8.96026718,2477.8,2477.7,0.99111335]
[1747481450641,8.96026718,2477.8,2477.7,1.37604214]
[1747481451646,8.96026718,2478.2,2477.8,4.03574942]
[1747481452524,8.96026718,2478.2,2477.9,0.22611335]
[1747481452723,8.96026718,2478.2,2478.1,0.7705]
[1747481453136,8.96026718,2478.2,2478.1,0.99661335]
[1747481453314,8.96026718,2478.2,2478.1,1.38154214]
[1747481454916,12.995454,2478.2,2478.1,1.38154214]
[1747481455115,12.995454,2478.2,2478.1,0.61104214]
[1747481455642,8.96026718,2478.2,2478.1,0.61104214]
[1747481456518,8.96026718,2478.2,2478.1,1.84176672]
[1747481457954,4.0348177,2478.5,2478.2,0.7659]
[1747481458530,4.03490668,2478.4,2478.3,0.22611335]
[1747481459656,12.99468503,2478.7,2478.3,0.22611335]
[1747481459819,8.96026718,2478.7,2478.3,0.22611335]
[1747481460017,8.96026718,2478.7,2478.3,0.89039676]
[1747481460262,8.96026718,2478.7,2478.4,0.38492879]
[1747481460458,12.99472943,2478.7,2478.4,0.38492879]
[1747481460659,4.03453562,2478.6,2478.5,7.709]
[1747481461159,4.03453562,2478.6,2478.5,8.09392879]
[1747481463253,4.03453562,2478.6,2478.5,0.38492879]
[1747481464562,4.0348612,2478.4,2478.3,0.38492879]
[1747481464727,4.0348612,2478.4,2478.3,1.19422167]
[1747481466973,4.03460375,2478.6,2478.4,0.7659]
[1747481467338,4.03431837,2478.8,2478.4,0.7659]
[1747481468071,4.03443801,2478.7,2478.5,0.38492879]
[1747481469038,4.03443801,2478.7,2478.6,0.38492879]
[1747481470446,4.03443801,2478.7,2478.5,0.38492879]
[1747481470784,4.03443801,2478.7,2478.5,0.62901608]
[1747481471782,4.03453562,2478.6,2478.5,0.62901608]
[1747481472075,4.03453562,2478.6,2478.5,0.46996603]
[1747481472273,4.03453562,2478.6,2478.5,0.22587874]
[1747481472692,4.0348612,2478.4,2478.3,0.48075122]
[1747481473064,4.0348612,2478.4,2478.3,0.86624336]
[1747481473265,4.0348612,2478.4,2478.3,8.51724336]
[1747481473461,4.0348612,2478.4,2478.3,8.74314467]
[1747481474173,4.0348612,2478.4,2478.3,9.7607356]
[1747481474501,4.0348612,2478.4,2478.3,9.27998438]
[1747481476767,4.03419749,2478.9,2478.3,9.27998438]
[1747481476969,4.03431878,2478.8,2478.4,0.8047]
[1747481477172,4.03431878,2478.8,2478.5,0.9119861]
[1747481477613,4.03431878,2478.8,2478.6,0.22590131]
[1747481478124,28.90403938,2479.2,2478.6,0.61139345]
[1747481478266,24.87046718,2479.2,2478.6,0.61139345]
[1747481478467,4.03412208,2478.9,2478.7,0.55580686]
[1747481478668,4.03412208,2478.9,2478.8,7.65]
[1747481479506,4.03412208,2478.9,2478.8,8.03549214]
[1747481479873,4.03400794,2479.0,2478.8,8.03549214]
[1747481480066,4.03377856,2479.1,2478.8,0.38549214]
[1747481480269,4.03388463,2479.0,2478.8,8.03549214]
[1747481480508,4.03380878,2479.1,2478.8,8.83904135]
[1747481480724,4.03372191,2479.1,2478.9,0.38549214]
[1747481481701,12.99390797,2479.2,2478.9,0.38549214]
[1747481482070,4.29514483,2479.6,2478.8,9.22684921]
[1747481482071,4.03335114,2479.4,2479.0,0.38549214]
[1747481482275,4.03335114,2479.4,2479.1,0.7733]
[1747481482276,4.03341594,2479.3,2479.1,0.7733]
[1747481482670,4.03341594,2479.3,2479.2,0.22606037]
[1747481483403,4.03313732,2479.5,2479.2,0.22606037]
[1747481483404,4.03330602,2479.4,2479.2,0.22606037]
[1747481483703,4.03339652,2479.3,2479.2,0.22606037]
[1747481483867,4.03339652,2479.3,2479.2,7.86111772]
[1747481484071,4.03333109,2479.4,2479.2,8.76310871]
[1747481484268,12.99308455,2479.7,2479.2,9.14860085]
[1747481484495,4.03308015,2479.5,2479.2,8.93748313]
[1747481485207,4.0329851,2479.6,2479.2,8.93748313]
[1747481485410,4.03309288,2479.5,2479.2,8.93748313]
[1747481485612,4.03309288,2479.5,2479.3,1.37444587]
[1747481485798,4.03309288,2479.5,2479.3,1.75993801]
[1747481487527,4.03309288,2479.5,2479.4,0.38549214]
[1747481489513,4.29529288,2479.5,2479.4,0.38549214]
[1747481489687,4.29529288,2479.5,2479.2,7.648]
[1747481489688,4.03339652,2479.3,2479.2,7.648]
[1747481491295,4.03372191,2479.1,2479.0,7.648]
[1747481491487,4.03396004,2479.0,2478.8,0.8309]
[1747481491818,4.03396004,2479.0,2478.9,7.648]
[1747481492910,4.03396004,2479.0,2478.9,8.03307281]
[1747481493125,4.0338089,2479.1,2478.9,8.03307281]
[1747481494215,4.0338089,2479.1,2479.0,0.38507281]
[1747481495418,4.0338089,2479.1,2479.0,8.03307281]
[1747481497828,4.0338089,2479.1,2479.0,0.38507281]
[1747481498126,4.0338089,2479.1,2479.0,8.03307281]
[1747481499256,4.03363612,2479.2,2479.0,8.03307281]
[1747481500242,4.03363612,2479.2,2479.1,0.38507281]
[1747481500546,4.03324114,2479.4,2479.2,0.7997]
[1747481501309,17.22246718,2479.7,2479.3,7.648]
[1747481501310,21.25523733,2479.7,2479.3,7.648]
[1747481501536,4.03355117,2479.3,2479.1,0.38507281]
[1747481501815,4.03355117,2479.3,2479.2,7.87385655]
[1747481503850,4.03355117,2479.3,2479.2,8.2594044]
[1747481507466,4.03328422,2479.4,2479.2,8.2594044]
[1747481507948,4.03328422,2479.4,2479.3,0.22585655]
[1747481508449,4.03323384,2479.4,2479.3,0.22585655]
[1747481508747,4.03323384,2479.4,2479.3,0.6114044]
[1747481508924,4.03318587,2479.5,2479.3,0.6114044]
[1747481509129,4.03318587,2479.5,2479.4,0.22585655]
[1747481510652,4.03318587,2479.5,2479.4,0.6114044]
[1747481510824,4.03299976,2479.6,2479.4,0.6114044]
[1747481511029,4.03307118,2479.5,2479.4,0.6114044]
[1747481511246,8.96026718,2479.7,2479.5,0.7997]
[1747481511556,12.99301323,2479.7,2479.5,0.7997]
[1747481511751,12.99301323,2479.7,2479.6,0.6114044]
[1747481512858,8.96026718,2479.7,2479.6,0.6114044]
[1747481513433,8.96026718,2479.7,2479.6,1.09215562]
[1747481513634,8.96026718,2479.7,2479.6,2.27033085]
[1747481514063,8.96026718,2479.7,2479.6,3.07003085]
[1747481514761,4.03234821,2480.0,2479.6,3.07003085]
[1747481514959,4.03234821,2480.0,2479.7,7.644]
[1747481515196,4.03218216,2480.1,2479.7,7.644]
[1747481515346,12.99235633,2480.2,2479.8,1.70054801]
[1747481515547,8.96026718,2480.2,2479.9,4.83199728]
[1747481515971,8.96026718,2480.2,2480.0,0.22585655]
[1747481516682,8.96026718,2480.2,2480.1,0.38554785]
[1747481516860,8.96026718,2480.2,2480.1,0.6114044]
[1747481517063,8.96026718,2480.2,2480.1,1.20383174]
[1747481517904,8.96026718,2480.2,2480.1,0.6114044]
[1747481518447,9.22246718,2480.7,2480.1,0.6114044]
[1747481518688,4.0313064,2480.6,2480.3,0.7679]
[1747481518905,12.99145863,2480.7,2480.3,0.7679]
[1747481519062,4.03137418,2480.6,2480.4,0.84109]
[1747481519267,12.99145863,2480.7,2480.4,0.84109]
[1747481520987,4.0312899,2480.6,2480.4,0.84109]
[1747481521522,4.03131432,2480.6,2480.4,0.84109]
[1747481521705,4.03131432,2480.6,2480.5,0.384473]
[1747481521867,4.03131432,2480.6,2480.5,8.027473]
[1747481523087,12.99146212,2480.7,2480.5,8.027473]
[1747481523262,8.96026718,2480.7,2480.5,9.5973203]
[1747481524153,8.96026718,2480.7,2480.5,9.2128473]
[1747481525289,8.96026718,2480.7,2480.6,0.38386868]
[1747481525592,4.03082959,2480.9,2480.6,0.38386868]
[1747481525886,8.96026718,2481.2,2480.6,3.4878918]
[1747481526059,4.03112024,2480.7,2480.6,3.4878918]
[1747481526456,4.03104296,2480.8,2480.6,3.4878918]
[1747481526661,4.03104296,2480.8,2480.6,3.10402312]
[1747481527283,4.03112024,2480.7,2480.6,3.10402312]
[1747481527607,4.03122475,2480.7,2480.6,7.641]
[1747481529610,4.03144527,2480.5,2480.4,17.412]
[1747481529814,4.03144527,2480.5,2480.4,25.053]
[1747481530710,4.03136374,2480.6,2480.4,25.053]
[1747481530912,4.03136374,2480.6,2480.5,2.5053]
[1747481532608,4.29356374,2480.6,2480.5,8.0236907]
[1747481532817,4.29356374,2480.6,2480.5,0.3836907]
[1747481533598,6.08739052,2480.6,2480.5,0.3836907]
[1747481533803,14.08739052,2480.6,2480.5,0.3836907]
[1747481534415,14.58739052,2480.6,2480.5,0.3836907]
[1747481534911,4.0319329,2480.2,2480.1,0.48075122]
[1747481536033,4.2941329,2480.2,2480.1,0.48075122]
[1747481536635,4.03225806,2480.0,2479.9,7.637]
[1747481537617,4.03215575,2480.1,2479.9,7.637]
[1747481537821,4.03215575,2480.1,2480.0,0.84078]
[1747481538135,4.03215575,2480.1,2479.9,7.637]
[1747481538444,4.03225806,2480.0,2479.9,7.637]
[1747481539642,4.03225806,2480.0,2479.9,8.02189664]
[1747481540409,4.03225806,2480.0,2479.9,0.38489664]
[1747481540614,4.03225806,2480.0,2479.9,8.02289664]
[1747481542356,4.0320636,2480.2,2479.9,8.02289664]
[1747481542868,4.03219964,2480.1,2479.9,8.02289664]
[1747481543565,4.03189121,2480.3,2480.0,0.8099]
[1747481543850,4.03189121,2480.3,2480.0,1.19479664]
[1747481544044,4.03199675,2480.2,2480.0,1.19479664]
[1747481544947,4.03199675,2480.2,2480.1,0.38489664]
[1747481546015,8.96026718,2480.5,2480.1,4.41698839]
[1747481546348,12.99172309,2480.5,2480.3,0.8099]
[1747481546510,4.0316078,2480.4,2480.3,0.8099]
[1747481546957,12.99180653,2480.5,2480.3,0.8099]
[1747481547157,12.99180653,2480.5,2480.4,7.638]
[1747481547511,12.99180653,2480.5,2480.4,7.8638475]
[1747481547989,12.99180653,2480.5,2480.4,8.24874414]
[1747481548553,12.99180653,2480.5,2480.4,8.24868916]
[1747481549385,12.99180653,2480.5,2480.4,8.24870972]
[1747481549887,8.96026718,2480.5,2480.4,8.24870972]
[1747481550255,4.03137195,2480.6,2480.4,8.24870972]
[1747481550454,4.03137195,2480.6,2480.5,0.38489664]
[1747481553005,8.96026718,2480.9,2480.5,1.1871863]
[1747481553148,8.96026718,2480.9,2480.6,0.0403094]
[1747481553354,12.99115436,2480.9,2480.7,0.22571839]
[1747481553890,12.99115436,2480.9,2480.5,1.9838863]
[1747481554214,12.99115436,2480.9,2480.8,0.38489664]
[1747481555101,13.25335436,2480.9,2480.8,0.38489664]
[1747481556293,13.25335436,2480.9,2480.5,7.637]
[1747481556294,4.03112024,2480.7,2480.6,0.38489664]
[1747481569582,4.03112024,2480.7,2480.6,0.61089441]
[1747481577819,4.03112024,2480.7,2480.6,1.09164563]
[1747481580296,4.03099553,2480.8,2480.6,1.09164563]
[1747481580495,4.03099553,2480.8,2480.6,2.74341019]
[1747481580700,4.03112024,2480.7,2480.6,1.87104563]
[1747481584021,4.03112024,2480.7,2480.6,1.39029441]
[1747481585530,4.03112024,2480.7,2480.6,0.61089441]
[1747481590128,4.03112024,2480.7,2480.6,1.0942034]
[1747481590627,12.99112926,2480.9,2480.6,1.0942034]
[1747481590628,4.03104831,2480.8,2480.7,0.7625]
[1747481591014,12.9911569,2480.9,2480.7,0.7625]
[1747481591216,8.96026718,2480.9,2480.7,1.71137034]
[1747481591418,4.03095775,2480.8,2480.7,1.71137034]
[1747481591610,12.99115558,2480.9,2480.7,1.71137034]
[1747481591800,4.03095775,2480.8,2480.7,1.71137034]
[1747481592002,4.03095775,2480.8,2480.7,1.93785487]
[1747481592214,4.03095775,2480.8,2480.7,2.32275151]
[1747481592533,12.99115738,2480.9,2480.7,2.32275151]
[1747481593027,4.03095775,2480.8,2480.7,2.32275151]
[1747481593237,4.03095775,2480.8,2480.7,1.93785487]
[1747481593604,12.9911358,2480.9,2480.7,1.93785487]
[1747481594435,12.9911358,2480.9,2480.8,0.22648453]
[1747481596401,12.9911358,2480.9,2480.8,0.61282242]
[1747481596402,8.96026718,2480.9,2480.8,0.61282242]
[1747481596607,12.99106245,2480.9,2480.8,0.90920816]
[1747481596808,12.99106245,2480.9,2480.8,0.61282242]
[1747481597315,12.99106245,2480.9,2480.8,8.23782242]
[1747481600237,12.99106245,2480.9,2480.8,8.72058308]
[1747481601644,12.99106245,2480.9,2480.8,1.09558308]
[1747481601816,12.99106245,2480.9,2480.8,8.72058308]
[1747481604039,12.99106245,2480.9,2480.8,8.23782242]
[1747481611211,12.99106245,2480.9,2480.8,9.05982242]
[1747481612048,12.99106245,2480.9,2480.8,8.23782242]
[1747481613955,8.96026718,2480.9,2480.8,8.23782242]
[1747481614273,12.99106245,2480.9,2480.8,8.23782242]
[1747481615756,8.96026718,2480.9,2480.8,8.23782242]
[1747481615970,12.99032463,2481.4,2480.8,9.96127112]
[1747481616258,12.99032463,2481.4,2481.1,0.7535]
[1747481616259,8.96026718,2481.4,2481.1,0.7535]
[1747481616832,8.96026718,2481.4,2481.2,0.22648453]
[1747481617030,8.96026718,2481.4,2481.3,7.624]
[1747481617263,8.96026718,2481.8,2481.3,7.624]
[1747481617632,4.02974669,2481.6,2481.4,0.22648453]
[1747481618180,2.03161531,2482.0,2481.5,1.05458453]
[1747481618662,2.03161531,2482.0,2481.6,5.12341393]
[1747481618843,6.06063471,2482.0,2481.6,1.09384298]
[1747481619630,2.03161531,2482.0,2481.8,0.8281]
[1747481619828,2.03161531,2482.0,2481.9,7.624]
[1747481620975,2.03161531,2482.0,2481.9,7.85048453]
[1747481621140,2.03161531,2482.0,2481.9,9.17628972]
[1747481622877,2.03161531,2482.0,2481.9,9.56262761]
[1747481628382,2.03161531,2482.0,2481.9,13.5917988]
[1747481628670,2.03161531,2482.0,2481.9,9.56262761]
[1747481629697,2.03161531,2482.0,2481.9,14.4129988]
[1747481629884,2.03161531,2482.0,2481.9,10.38382761]
[1747481630296,2.03161531,2482.0,2481.9,10.93382761]
[1747481630710,2.03161531,2482.0,2481.9,14.9629988]
[1747481631015,2.03161531,2482.0,2481.9,10.93382761]
[1747481632125,2.03161531,2482.0,2481.9,14.9629988]
[1747481634690,12.98864481,2482.4,2481.9,14.9629988]
[1747481634691,8.96026718,2482.4,2482.0,4.79247278]
[1747481634893,8.96026718,2482.4,2482.1,1.49051004]
[1747481635202,8.96026718,2482.4,2482.1,1.87684793]
[1747481635587,8.96026718,2482.4,2482.1,5.90568943]
[1747481635792,8.96026718,2482.4,2482.1,1.87684793]
[1747481636191,8.96026718,2482.4,2482.1,2.17614242]
[1747481636406,8.96026718,2482.4,2482.2,2.43675615]
[1747481636722,12.98862972,2482.4,2482.2,2.43675615]
[1747481637019,8.96026718,2482.4,2482.2,2.43675615]
[1747481637226,4.0282629,2482.5,2482.2,2.43675615]
[1747481637416,4.02842641,2482.4,2482.2,2.43675615]
[1747481637594,4.02842641,2482.4,2482.3,0.42265607]
[1747481638723,4.02842641,2482.4,2482.3,8.03465607]
[1747481638920,4.02842641,2482.4,2482.3,7.99540552]
[1747481640724,4.02884654,2482.1,2482.0,17.399]
[1747481640921,4.29104654,2482.1,2482.0,25.011]
[1747481641798,4.29104654,2482.1,2482.0,17.399]
[1747481642021,4.29104654,2482.1,2482.0,17.78295222]
[1747481642203,4.29104654,2482.1,2482.0,0.38395222]
[1747481643694,4.02900886,2482.0,2481.9,7.612]
[1747481643900,12.98927604,2482.0,2481.9,7.612]
[1747481644127,4.02933354,2481.8,2481.7,0.48032566]
[1747481644439,13.25154059,2482.0,2481.7,8.09232566]
[1747481644726,4.02918404,2481.9,2481.8,0.80923257]
[1747481645307,4.02918404,2481.9,2481.8,1.1939503]
[1747481645507,4.02918404,2481.9,2481.8,1.4195141]
[1747481645898,4.02918404,2481.9,2481.8,0.61028153]
[1747481646091,4.02918404,2481.9,2481.8,8.22328153]
[1747481646294,4.02918404,2481.9,2481.8,7.99771773]
[1747481646828,4.02918404,2481.9,2481.8,0.38471773]
[1747481647005,4.02918404,2481.9,2481.8,7.99771773]
[1747481647209,4.02918404,2481.9,2481.8,0.38471773]
[1747481647434,4.02918404,2481.9,2481.8,8.22348259]
[1747481647732,4.02918404,2481.9,2481.8,0.61048259]
[1747481647922,4.02918404,2481.9,2481.8,8.22348259]
[1747481649354,3.80918404,2481.9,2481.8,8.22348259]
[1747481649535,3.80918404,2481.9,2481.8,0.61048259]
[1747481649727,4.07138404,2481.9,2481.8,8.22348259]
[1747481651742,4.07138404,2481.9,2481.8,0.61048259]
[1747481651943,4.07138404,2481.9,2481.8,8.22348259]
[1747481653044,3.80918404,2481.9,2481.8,8.22348259]
[1747481653244,3.80918404,2481.9,2481.8,0.61048259]
[1747481653548,8.96026718,2482.0,2481.8,8.22348259]
[1747481653747,8.96026718,2482.0,2481.8,9.09386342]
[1747481653934,12.98929778,2482.0,2481.8,9.09386342]
[1747481654314,12.98929778,2482.0,2481.9,0.22576486]
[1747481655715,12.98929778,2482.0,2481.9,7.83876486]
[1747481656053,12.98929778,2482.0,2481.9,8.22348259]
[1747481658051,12.98929778,2482.0,2481.9,0.61048259]
[1747481658239,12.98929778,2482.0,2481.9,8.22348259]
[1747481658617,12.98929778,2482.0,2481.9,0.61048259]
[1747481658915,12.98929778,2482.0,2481.9,8.21648259]
[1747481661230,12.98929778,2482.0,2481.9,7.99071773]
[1747481661431,12.98929778,2482.0,2481.9,8.21664644]
[1747481663874,8.96026718,2482.0,2481.9,9.99761365]
[1747481664633,8.96026718,2482.0,2481.9,10.63727825]
[1747481667236,4.02861484,2482.3,2481.9,10.63727825]
[1747481667434,4.02861484,2482.3,2482.0,0.22592871]
[1747481667832,4.02868423,2482.2,2482.1,0.22592871]
[1747481668033,4.02868423,2482.2,2482.1,0.61064644]
[1747481668470,4.02868423,2482.2,2482.1,8.21564644]
[1747481669549,4.02868423,2482.2,2482.1,9.08804079]
[1747481671171,8.96026718,2482.6,2482.1,9.08804079]
[1747481671334,4.02834994,2482.5,2482.1,9.08804079]
[1747481671540,4.02850085,2482.4,2482.1,9.08804079]
[1747481671887,4.02852216,2482.3,2482.1,9.08804079]
[1747481672073,4.02852216,2482.3,2482.2,0.97277054]
[1747481672371,4.02852216,2482.3,2482.2,1.35748827]
[1747481672585,4.02852216,2482.3,2482.2,1.58341698]
[1747481672868,4.02852216,2482.3,2482.2,8.21564644]
[1747481675364,4.02845403,2482.4,2482.2,8.21564644]
[1747481675965,4.02845403,2482.4,2482.3,0.22592871]
[1747481676367,4.02825328,2482.5,2482.3,0.61064644]
[1747481676546,4.02835965,2482.4,2482.3,0.61064644]
[1747481676878,4.02835965,2482.4,2482.3,7.98971773]
[1747481677758,12.98838016,2482.6,2482.3,8.2157079]
[1747481678063,4.02821959,2482.5,2482.3,9.06288733]
[1747481678446,4.02821959,2482.5,2482.4,0.22599017]
[1747481679863,4.02821959,2482.5,2482.4,0.6107079]
[1747481681247,4.02821959,2482.5,2482.0,4.02891779]
[1747481681248,12.02982067,2481.5,2481.4,1.28136749]
[1747481681452,23.90770357,2481.5,2481.4,1.28136749]
[1747481681780,25.89917002,2481.5,2481.4,1.28136749]
[1747481681984,24.43320055,2481.5,2481.4,1.28136749]
[1747481683286,4.03014548,2481.3,2480.5,7.605]
[1747481683581,4.03128275,2480.6,2480.5,8.44051]
[1747481683779,4.03128275,2480.6,2480.5,0.83551]
[1747481684101,4.03072831,2481.0,2480.5,7.606]
[1747481684251,15.724,2481.3,2480.5,7.606]
[1747481684451,4.03074039,2481.0,2480.5,7.606]
[1747481685186,4.03084713,2480.9,2480.5,7.606]
[1747481690012,12.9905417,2481.3,2480.5,11.63744505]
[1747481690196,12.9905417,2481.3,2480.6,9.6508445]
[1747481690197,4.03034642,2481.2,2480.6,9.6508445]
[1747481690398,4.03065585,2481.0,2480.6,9.6508445]
[1747481690616,4.03059454,2481.1,2480.6,9.6508445]
[1747481691105,4.03073179,2481.0,2480.6,9.6508445]
[1747481691302,4.03083711,2480.9,2480.7,2.12881543]
[1747481693007,4.0307539,2481.0,2480.7,2.12881543]
[1747481693203,8.96026718,2481.3,2480.8,7.708]
[1747481693204,4.03087898,2480.9,2480.8,7.708]
[1747481693584,4.03051921,2481.1,2480.8,7.708]
[1747481693784,4.03078492,2481.0,2480.8,7.708]
[1747481694903,4.03079527,2480.9,2480.8,7.708]
[1747481696104,4.03077825,2481.0,2480.8,7.708]
[1747481696405,4.0307727,2481.0,2480.8,7.708]
[1747481697784,4.03079527,2480.9,2480.8,7.708]
[1747481697984,4.03070148,2481.0,2480.8,7.708]
[1747481698694,4.03079527,2480.9,2480.8,7.708]
[1747481699923,4.03103787,2480.8,2480.6,0.7801]
[1747481700102,4.03103787,2480.8,2480.7,7.708]
[1747481702829,4.03083383,2480.9,2480.6,0.7801]
[1747481703129,4.03083383,2480.9,2480.7,7.709]
[1747481704025,4.03072244,2481.0,2480.7,7.709]
[1747481704330,4.03082984,2480.9,2480.7,7.709]
[1747481706839,4.03030791,2481.2,2480.4,0.7525]
[1747481707009,4.03169284,2480.4,2480.1,8.4115]
[1747481707214,1.79382678,2481.1,2480.2,7.709]
[1747481707215,4.03154057,2480.5,2480.2,7.709]
[1747481707528,4.03154057,2480.5,2480.3,0.3844664]
[1747481708097,4.03139934,2480.6,2480.3,0.3844664]
[1747481708733,4.03083119,2480.9,2480.3,0.3844664]
[1747481708935,4.0314751,2480.5,2480.3,0.3844664]
[1747481709843,4.0314751,2480.5,2480.4,0.3844664]
[1747481710558,4.0314751,2480.5,2480.4,8.0934664]
[1747481710701,12.99174228,2480.5,2480.4,0.3844664]
[1747481711567,4.03215934,2480.1,2479.9,0.3844664]
[1747481712049,4.03225806,2480.0,2479.9,0.3844664]
[1747481712201,12.99252524,2480.0,2479.9,0.3844664]
[1747481712547,8.96026718,2480.0,2479.9,0.3844664]
[1747481713436,12.99252524,2480.0,2479.9,8.0934664]
[1747481713643,12.99252524,2480.0,2479.9,7.709]
[1747481714535,12.99260385,2480.0,2479.8,8.0944664]
[1747481714744,8.96026718,2480.0,2479.8,8.0944664]
[1747481714904,8.96026718,2480.0,2479.9,4.83622066]
[1747481715101,8.96026718,2480.0,2479.9,0.8038]
[1747481715307,8.96026718,2480.0,2479.9,1.1882664]
[1747481716129,8.96026718,2480.0,2479.9,8.0944664]
[1747481716336,8.96026718,2480.0,2479.9,0.3844664]
[1747481716542,8.96026718,2480.0,2479.9,8.0944664]
[1747481717442,12.99252524,2480.0,2479.9,8.0954664]
[1747481718618,12.99252524,2480.0,2479.9,0.3844664]
[1747481718818,12.99252524,2480.0,2479.9,8.0954664]
[1747481719023,12.99252524,2480.0,2479.9,7.711]
[1747481719653,12.98774813,2480.0,2479.9,7.711]
[1747481720450,12.98774813,2480.0,2479.9,8.0954664]
[1747481720616,12.98774813,2480.0,2479.9,8.0374664]
[1747481721857,8.95549007,2480.0,2479.9,8.0374664]
[1747481722352,8.95549007,2480.0,2479.9,13.27689896]
[1747481722554,8.95549007,2480.0,2479.9,14.04559896]
[1747481722761,4.03129834,2480.6,2480.1,4.03195942]
[1747481722762,4.03132249,2480.6,2480.1,4.03195942]
[1747481722934,4.03132249,2480.6,2480.0,4.03221852]
[1747481722935,8.36980843,2480.7,2480.4,4.03149365]
[1747481723123,8.36980843,2480.7,2480.5,7.653]
[1747481724755,12.40092867,2480.7,2480.6,0.3844664]
[1747481724970,12.40092867,2480.7,2480.6,8.0374664]
[1747481726152,12.40092867,2480.7,2480.6,7.653]
[1747481726558,12.39403618,2480.7,2480.6,7.653]
[1747481727654,8.36291594,2480.7,2480.6,7.653]
[1747481728132,12.39403618,2480.7,2480.6,7.653]
[1747481728758,8.36291594,2480.7,2480.6,8.4183]
[1747481728942,8.36291594,2480.7,2480.6,9.187]
[1747481730863,8.36291594,2480.7,2480.6,13.21828275]
[1747481731364,8.36291594,2480.7,2480.6,13.60346856]
[1747481731872,8.36291594,2480.7,2480.6,9.57218581]
[1747481732529,4.03067935,2481.0,2480.6,9.57218581]
[1747481732729,4.03067935,2481.0,2480.7,1.36035537]
[1747481733632,4.02202072,2481.0,2480.7,1.36035537]
[1747481734176,4.02202072,2481.0,2480.8,0.38518581]
[1747481734965,12.39329305,2481.2,2480.8,0.38518581]
[1747481734966,8.36291594,2481.2,2480.8,0.38518581]
[1747481735127,4.03047802,2481.1,2480.8,0.38518581]
[1747481735534,4.03071375,2481.0,2480.8,0.38518581]
[1747481737287,4.03079527,2480.9,2480.8,0.38518581]
[1747481737489,4.03072896,2481.0,2480.8,0.38518581]
[1747481740495,8.36291594,2481.2,2480.8,1.47843993]
[1747481740676,12.39331756,2481.2,2481.0,0.00612499]
[1747481740876,4.03047035,2481.1,2481.0,0.00612499]
[1747481741194,4.03047035,2481.1,2481.0,7.65712499]
[1747481743663,4.03047035,2481.1,2481.0,8.0421477]
[1747481747691,4.02321863,2481.1,2481.0,8.0421477]
[1747481748887,7.609,2481.9,2481.0,2.01796247]
[1747481749087,4.03008173,2481.4,2481.1,7.651]
[1747481749482,4.02989829,2481.5,2481.1,7.651]
[1747481750611,4.02989829,2481.5,2481.2,0.38502271]
[1747481751312,4.02989829,2481.5,2481.3,7.608]
[1747481752305,7.608,2481.8,2481.2,0.38502271]
[1747481752306,4.03014548,2481.3,2481.2,0.38502271]
[1747481752496,4.03014548,2481.3,2481.2,7.608]
[1747481754015,4.03030791,2481.2,2481.1,0.48127839]
[1747481754190,4.03030791,2481.2,2481.1,8.08927839]
[1747481754714,4.02225167,2481.2,2481.1,8.08927839]
[1747481756313,4.03047035,2481.1,2481.0,7.61412499]
[1747481757318,4.03047035,2481.1,2481.0,7.99996977]
[1747481761614,4.02544308,2481.1,2481.0,0.39196977]
[1747481761912,4.02544308,2481.1,2481.0,7.99996977]
[1747481763409,4.02544308,2481.1,2481.0,0.39196977]
[1747481763615,4.02544308,2481.1,2481.0,7.99996977]
[1747481765595,4.02544308,2481.1,2481.0,0.39196977]
[1747481766442,12.38835902,2481.1,2481.0,0.39196977]
[1747481767220,20.38835902,2481.1,2481.0,0.39196977]
[1747481767542,21.21115885,2481.1,2481.0,0.39196977]
[1747481768201,21.21115885,2481.1,2481.0,0.00612499]
[1747481768615,21.20518196,2481.1,2481.0,0.00612499]
[1747481769021,20.59247367,2481.1,2481.0,0.00612499]
[1747481769347,28.20047367,2481.1,2481.0,0.00612499]
[1747481770655,4.03144527,2480.5,2480.4,0.00612499]
[1747481770944,12.39436121,2480.5,2480.4,0.00612499]
[1747481771141,12.39436121,2480.5,2480.4,0.39201532]
[1747481771948,8.36291594,2480.5,2480.4,1.22281532]
[1747481772148,8.36291594,2480.5,2480.4,2.10589685]
[1747481772346,8.36291594,2480.5,2480.4,6.13750465]
[1747481772532,8.36291594,2480.5,2480.4,2.10589685]
[1747481774266,12.39436121,2480.5,2480.4,0.39201532]
[1747481774470,12.39436121,2480.5,2480.4,8.00101532]
[1747481775774,12.38808112,2480.5,2480.4,8.00101532]
[1747481777967,12.38808112,2480.5,2480.4,7.61512499]
[1747481778532,12.38808112,2480.5,2480.4,0.00612499]
[1747481782670,12.3820642,2480.5,2480.4,0.00612499]
[1747481785072,29.78389098,2480.5,2480.4,0.00612499]
[1747481785737,4.0319329,2480.2,2480.1,0.00612499]
[1747481787740,4.0319329,2480.2,2480.1,0.39142398]
[1747481791790,4.03185001,2480.3,2480.1,0.39142398]
[1747481792289,4.03185001,2480.3,2480.2,0.38529899]
[1747481793004,4.0317215,2480.4,2480.2,0.38529899]
[1747481793201,4.0317215,2480.4,2480.3,7.609]
[1747481793367,12.38214694,2480.5,2480.3,9.1800424]
[1747481793693,12.38222062,2480.5,2480.3,9.1800424]
[1747481793891,8.35061893,2480.5,2480.3,9.1800424]
[1747481794263,8.35061893,2480.5,2480.4,0.38529899]
[1747481794665,8.34449394,2480.5,2480.4,0.38529899]
[1747481794871,12.37593921,2480.5,2480.4,0.38529899]
[1747481795075,12.37593921,2480.5,2480.4,7.99429899]
[1747481796796,12.36816915,2480.5,2480.4,7.99429899]
[1747481798500,12.36816915,2480.5,2480.4,0.38529899]
[1747481798801,12.36816915,2480.5,2480.4,7.99429899]
[1747481800796,12.36816915,2480.5,2480.4,0.38529899]
[1747481801098,12.36816915,2480.5,2480.4,7.99429899]
[1747481801880,12.36816915,2480.5,2480.4,7.609]
[1747481803380,12.36816915,2480.5,2480.4,7.99429899]
[1747481810731,12.35952252,2480.5,2480.4,7.99429899]
[1747481812830,12.35952252,2480.5,2480.4,9.62122889]
[1747481813039,8.32807725,2480.5,2480.4,9.62122889]
[1747481814338,12.35952252,2480.5,2480.4,9.62122889]
[1747481816327,12.35952252,2480.5,2480.4,9.61822889]
[1747481816531,12.35952252,2480.5,2480.4,8.81879899]
[1747481817444,12.35952252,2480.5,2480.4,7.99129899]
[1747481817741,12.35271909,2480.5,2480.4,7.99129899]
[1747481818845,12.35271909,2480.5,2480.4,0.38529899]
[1747481819049,21.75254587,2480.5,2480.4,0.38529899]